bitfinex/quotes_SOLUSD_20250525
["timestamp","ask_amount","ask_price","bid_price","bid_amount"]
[1748210481821,4.02927548,171.4,171.36,60.51130709]
[1748210482213,4.02927548,171.39,171.36,60.51130709]
[1748210483339,4.30309505,171.41,171.36,60.51130709]
[1748210483510,4.30309505,171.41,171.37,25.53130709]
[1748210483832,6.45449473,171.41,171.37,25.53130709]
[1748210484239,4.02495145,171.4,171.37,25.53130709]
[1748210484425,7.32955722,171.4,171.37,25.53130709]
[1748210485030,4.02495145,171.39,171.37,25.53130709]
[1748210486033,4.02495145,171.38,171.37,25.53130709]
[1748210488840,7.32906412,171.38,171.37,25.53130709]
[1748210491256,7.32906412,171.4,171.37,25.53130709]
[1748210491436,7.32906412,171.4,171.39,25.53130709]
[1748210495258,3.30411267,171.4,171.39,25.53130709]
[1748210495462,7.32906412,171.42,171.4,0.14216157]
[1748210495649,7.32906412,171.42,171.41,60.65346866]
[1748210496157,3.30411267,171.42,171.41,60.65346866]
[1748210496559,4.12465986,171.45,171.41,60.65346866]
[1748210496734,4.12465986,171.45,171.44,25.53130709]
[1748210496940,4.12465986,171.45,171.44,62.71130709]
[1748210498157,7.61630408,171.48,171.44,62.71130709]
[1748210498473,4.03908288,171.47,171.45,34.98]
[1748210499359,3.30797219,171.49,171.45,34.98]
[1748210499562,3.30797219,171.49,171.48,25.53130709]
[1748210500048,7.34578148,171.49,171.48,25.53130709]
[1748210500471,3.30797219,171.49,171.48,25.53130709]
[1748210501171,3.30797219,171.53,171.48,25.53130709]
[1748210501365,4.03509416,171.52,171.48,25.53130709]
[1748210502048,4.03509416,171.52,171.45,34.98]
[1748210502049,4.03509416,171.52,171.49,25.53130709]
[1748210502660,4.03509416,171.52,171.51,25.53130709]
[1748210503762,4.12465986,171.57,171.51,25.67346866]
[1748210504076,4.12465986,171.57,171.56,25.53130709]
[1748210505065,4.12465986,171.57,171.55,25.53130709]
[1748210505260,4.12465986,171.57,171.56,25.53130709]
[1748210505664,137.9,171.59,171.56,25.53130709]
[1748210507674,137.9,171.59,171.57,25.53130709]
[1748210508065,137.9,171.59,171.56,25.53130709]
[1748210508473,169.91040709,171.62,171.56,25.53130709]
[1748210512176,169.91040709,171.62,171.57,34.94]
[1748210513669,137.9,171.62,171.59,25.53130709]
[1748210513972,25.53130709,171.65,171.59,25.53130709]
[1748210514180,25.53130709,171.65,171.6,60.47130709]
[1748210514785,171.55230709,171.67,171.61,25.53130709]
[1748210516601,25.53130709,171.65,171.6,34.94]
[1748210516892,146.021,171.67,171.59,34.94]
[1748210516893,25.53130709,171.62,171.59,34.94]
[1748210517470,18.64964886,171.65,171.55,25.53130709]
[1748210517471,25.53130709,171.61,171.55,25.53130709]
[1748210517689,25.53130709,171.61,171.56,34.94]
[1748210518698,25.53130709,171.61,171.56,60.47130709]
[1748210520901,25.53130709,171.61,171.56,34.94]
[1748210521930,25.53130709,171.57,171.49,1.5607]
[1748210522202,25.53130709,171.57,171.46,6.5491]
[1748210522203,25.53130709,171.55,171.48,34.94]
[1748210522384,25.53130709,171.53,171.48,60.47130709]
[1748210522587,25.53130709,171.53,171.48,34.94]
[1748210522900,25.53130709,171.51,171.48,34.94]
[1748210523486,25.53130709,171.52,171.48,34.94]
[1748210526108,25.53130709,171.52,171.46,25.53130709]
[1748210526488,25.53130709,171.52,171.47,25.53130709]
[1748210526695,25.53130709,171.53,171.47,25.53130709]
[1748210527409,27.04780709,171.54,171.49,25.53130709]
[1748210527604,137.9,171.57,171.52,25.53130709]
[1748210527811,25.53130709,171.59,171.53,25.53130709]
[1748210528105,25.53130709,171.59,171.53,34.94]
[1748210528305,25.53130709,171.59,171.53,60.47130709]
[1748210529107,25.53130709,171.6,171.54,25.53130709]
[1748210529313,25.53130709,171.6,171.55,25.53130709]
[1748210529507,25.53130709,171.61,171.56,25.53130709]
[1748210529818,25.53130709,171.61,171.55,25.53130709]
[1748210530506,28.80933982,171.62,171.57,25.53130709]
[1748210530695,28.80933982,171.62,171.57,60.47130709]
[1748210531010,25.53130709,171.62,171.57,60.47130709]
[1748210531314,25.53130709,171.62,171.57,34.94]
[1748210531619,25.53130709,171.62,171.57,60.47130709]
[1748210531925,28.80933982,171.63,171.57,60.47130709]
[1748210532091,25.53130709,171.62,171.57,34.94]
[1748210532293,25.53130709,171.62,171.57,60.47130709]
[1748210534024,4.84273273,171.66,171.57,60.47130709]
[1748210534245,25.53130709,171.64,171.59,25.53130709]
[1748210534398,4.84273273,171.66,171.59,25.53130709]
[1748210534739,25.53130709,171.65,171.6,25.53130709]
[1748210535201,25.53130709,171.64,171.57,34.94]
[1748210535389,25.53130709,171.64,171.58,25.53130709]
[1748210537238,25.53130709,171.64,171.59,25.53130709]
[1748210538248,25.53130709,171.65,171.59,25.53130709]
[1748210540542,25.53130709,171.65,171.59,25.47128158]
[1748210541621,4.05237096,171.64,171.59,25.47128158]
[1748210541926,4.05237096,171.64,171.6,25.53130709]
[1748210544020,4.05237096,171.64,171.58,26.0]
[1748210544346,29.58367805,171.64,171.58,51.53130709]
[1748210544538,25.53130709,171.64,171.58,26.0]
[1748210544844,25.53130709,171.64,171.58,51.53130709]
[1748210545143,3.27803273,171.67,171.58,86.47130709]
[1748210545144,25.53130709,171.63,171.58,86.47130709]
[1748210546227,25.53130709,171.63,171.58,60.47130709]
[1748210546948,4.05506674,171.62,171.58,60.47130709]
[1748210549946,25.53130709,171.63,171.58,25.53130709]
[1748210550135,25.53130709,171.63,171.59,34.92]
[1748210554044,28.80933982,171.65,171.59,60.45130709]
[1748210554246,28.80933982,171.65,171.59,34.92]
[1748210554438,28.80933982,171.65,171.59,60.45130709]
[1748210556155,25.53130709,171.65,171.59,60.45130709]
[1748210557248,18.65362871,171.65,171.59,53.57362871]
[1748210558959,18.65362871,171.65,171.6,18.65362871]
[1748210559171,3.27803273,171.67,171.61,18.65362871]
[1748210559457,3.27803273,171.67,171.62,18.65362871]
[1748210559668,3.27803273,171.67,171.63,34.92]
[1748210560372,4.06027736,171.67,171.63,34.92]
[1748210563567,4.06027736,171.67,171.66,26.14216157]
[1748210563881,4.06027736,171.67,171.66,18.78941444]
[1748210564188,22.77191273,171.71,171.66,71.78]
[1748210564469,18.64725287,171.7,171.66,71.78]
[1748210564680,4.12465986,171.71,171.66,71.78]
[1748210564844,4.12465986,171.71,171.67,18.64725287]
[1748210565044,4.12465986,171.71,171.7,18.64725287]
[1748210565279,4.12465986,171.71,171.7,34.92]
[1748210565450,4.12465986,171.71,171.66,36.86]
[1748210565451,18.64725287,171.71,171.67,34.92]
[1748210565659,18.64725287,171.69,171.65,71.78]
[1748210565854,18.64725287,171.7,171.65,71.78]
[1748210567369,3.29874921,171.74,171.67,18.64725287]
[1748210567572,3.29874921,171.74,171.65,71.78]
[1748210567756,18.64725287,171.69,171.63,26.0]
[1748210568080,18.64725287,171.68,171.65,71.78]
[1748210568282,18.64725287,171.67,171.65,71.78]
[1748210568779,3.29874921,171.74,171.66,44.78941444]
[1748210568963,3.29874921,171.74,171.71,18.64725287]
[1748210569166,18.64725287,171.72,171.65,26.0]
[1748210569371,18.64725287,171.7,171.67,71.78]
[1748210569683,18.64725287,171.71,171.67,71.78]
[1748210569873,18.64725287,171.73,171.67,90.42725287]
[1748210570183,18.64725287,171.73,171.68,18.64725287]
[1748210570483,18.64725287,171.73,171.63,24.61826446]
[1748210570484,18.64725287,171.7,171.55,91.5]
[1748210570665,3.29874921,171.74,171.66,18.64725287]
[1748210570866,3.29874921,171.74,171.7,18.64725287]
[1748210571179,3.29874921,171.74,171.7,55.50725287]
[1748210571384,3.29874921,171.76,171.73,18.64725287]
[1748210571562,7.35894311,171.76,171.73,18.64725287]
[1748210572680,18.64725287,171.78,171.73,18.64725287]
[1748210572874,18.64725287,171.74,171.66,1.652]
[1748210573178,26.0,171.8,171.72,18.64725287]
[1748210573369,4.07368705,171.79,171.72,18.64725287]
[1748210573570,18.64725287,171.77,171.71,18.64725287]
[1748210573784,18.64725287,171.76,171.71,18.64725287]
[1748210574083,7.37243626,171.79,171.72,18.64725287]
[1748210574286,18.64725287,171.76,171.71,18.64725287]
[1748210574481,7.37243626,171.79,171.7,34.92]
[1748210574482,18.64725287,171.74,171.7,34.92]
[1748210574665,4.07368705,171.78,171.7,34.92]
[1748210574877,18.64725287,171.75,171.7,53.56725287]
[1748210575183,18.64725287,171.76,171.71,18.64725287]
[1748210575387,3.29874921,171.79,171.72,18.64725287]
[1748210575616,18.64725287,171.76,171.71,18.78941444]
[1748210575899,18.64725287,171.76,171.72,36.84]
[1748210577477,18.64725287,171.77,171.72,55.48725287]
[1748210577695,18.64725287,171.79,171.74,18.64725287]
[1748210578000,4.07062489,171.78,171.73,18.64725287]
[1748210578201,4.07062489,171.78,171.74,18.64725287]
[1748210578385,4.07062489,171.78,171.75,44.64725287]
[1748210579098,4.07062489,171.79,171.75,44.64725287]
[1748210579348,22.71787776,171.79,171.73,44.64725287]
[1748210579480,18.64725287,171.78,171.73,44.64725287]
[1748210579881,18.64725287,171.78,171.73,26.0]
[1748210580109,18.64725287,171.78,171.73,44.64725287]
[1748210580279,18.64964886,171.81,171.73,44.64725287]
[1748210580611,3.29874921,171.82,171.74,18.64725287]
[1748210580813,3.29874921,171.82,171.78,18.64725287]
[1748210580981,3.29874921,171.82,171.79,18.64725287]
[1748210581309,3.29874921,171.82,171.81,0.14216157]
[1748210581507,3.29874921,171.82,171.8,34.9]
[1748210582321,18.64725287,171.82,171.8,34.9]
[1748210583017,4.12465986,171.84,171.8,34.9]
[1748210583241,18.64725287,171.82,171.8,34.9]
[1748210583443,18.64725287,171.83,171.8,34.9]
[1748210583744,22.77191273,171.84,171.8,34.9]
[1748210584109,4.12465986,171.84,171.8,34.9]
[1748210584311,22.77191273,171.84,171.8,34.9]
[1748210584531,4.28153173,171.87,171.83,18.64725287]
[1748210584737,0.05258197,171.86,171.84,18.64725287]
[1748210585124,0.05258197,171.86,171.84,55.48725287]
[1748210585657,0.05258197,171.86,171.85,79.54725287]
[1748210585803,0.05258197,171.86,171.85,79.68941444]
[1748210586010,4.12465986,171.89,171.87,26.14216157]
[1748210586310,4.12465986,171.89,171.86,18.64725287]
[1748210586535,4.12465986,171.89,171.85,60.9]
[1748210586731,18.64725287,171.88,171.83,26.0]
[1748210586933,4.12465986,171.89,171.84,38.48]
[1748210587109,22.77191273,171.89,171.84,38.48]
[1748210587621,4.08135209,171.91,171.86,18.64725287]
[1748210587813,22.72860496,171.91,171.86,18.64725287]
[1748210588227,18.64725287,171.91,171.85,0.14216157]
[1748210588444,18.64725287,171.91,171.85,18.78941444]
[1748210588746,18.64725287,171.91,171.86,18.64725287]
[1748210589041,18.64725287,171.94,171.89,18.64725287]
[1748210589420,18.64725287,171.94,171.88,53.54725287]
[1748210590046,18.64725287,171.94,171.89,18.64725287]
[1748210590411,1.6242,171.98,171.89,18.64725287]
[1748210590638,18.64725287,171.99,171.92,0.14216157]
[1748210590839,18.64725287,171.97,171.93,34.88]
[1748210591171,18.64725287,171.97,171.94,34.88]
[1748210591533,18.64725287,171.98,171.94,34.88]
[1748210591735,18.64725287,171.99,171.94,34.88]
[1748210591944,4.12465986,172.01,171.97,18.64725287]
[1748210592153,4.12465986,172.01,171.96,18.64725287]
[1748210592365,18.64725287,172.02,171.96,18.64725287]
[1748210593263,18.64964886,172.06,171.96,18.64725287]
[1748210593570,18.64725287,172.05,171.99,18.64725287]
[1748210593877,18.64725287,172.05,172.0,34.88]
[1748210594052,10.24405986,172.07,172.0,34.88]
[1748210594238,18.64725287,172.05,172.0,34.88]
[1748210594651,4.12465986,172.07,172.0,34.88]
[1748210594851,22.77191273,172.07,172.02,18.64725287]
[1748210595093,22.77191273,172.07,171.98,26.0]
[1748210595094,4.12465986,172.07,171.98,26.0]
[1748210595246,18.64725287,172.04,172.01,34.88]
[1748210595759,41.35436367,172.1,172.01,34.88]
[1748210595760,18.64725287,172.05,172.01,34.88]
[1748210595959,18.64964886,172.1,172.01,34.88]
[1748210596358,29.70569069,172.07,172.01,64.58569069]
[1748210596593,6.6088,172.11,172.04,29.70569069]
[1748210596893,4.89954188,172.13,172.05,29.70569069]
[1748210597079,29.70569069,172.1,172.06,34.86]
[1748210597959,1.6363,172.13,172.06,34.86]
[1748210598359,29.70569069,172.11,172.06,64.56569069]
[1748210599068,29.70569069,172.14,172.08,29.70569069]
[1748210599394,1.5334,172.17,172.09,29.70569069]
[1748210599598,29.70569069,172.15,172.09,29.70569069]
[1748210599755,29.70569069,172.15,172.07,26.0]
[1748210599756,29.70569069,172.13,172.06,35.00216157]
[1748210599957,29.70569069,172.11,172.07,26.0]
[1748210600290,29.70569069,172.1,172.04,55.70569069]
[1748210600506,29.70569069,172.08,172.03,55.70569069]
[1748210600672,29.70569069,172.08,172.05,34.86]
[1748210600877,29.70569069,172.1,172.05,34.86]
[1748210601061,1.5334,172.17,172.06,29.70569069]
[1748210601259,29.70569069,172.13,172.08,29.70569069]
[1748210601474,1.5334,172.17,172.08,29.70569069]
[1748210601795,29.70569069,172.15,172.08,0.14216157]
[1748210601992,29.70569069,172.14,172.08,29.84785226]
[1748210602180,1.5334,172.17,172.09,29.70569069]
[1748210602380,29.70569069,172.14,172.1,34.86]
[1748210603495,29.70569069,172.15,172.1,64.56569069]
[1748210603698,29.70569069,172.15,172.1,34.86]
[1748210603989,6.634,172.19,172.11,29.70569069]
[1748210604178,26.0,172.2,172.11,29.70569069]
[1748210604599,29.70569069,172.17,172.12,29.70569069]
[1748210604797,29.70569069,172.2,172.14,29.70569069]
[1748210604966,29.70569069,172.2,172.15,64.54569069]
[1748210605172,41.36872134,172.26,172.15,64.54569069]
[1748210605173,29.70569069,172.21,172.15,64.54569069]
[1748210605382,29.70569069,172.2,172.15,64.54569069]
[1748210605572,29.70569069,172.22,172.16,29.70569069]
[1748210605885,29.70569069,172.23,172.17,29.70569069]
[1748210606085,29.70569069,172.22,172.16,29.84785226]
[1748210606467,18.64964886,172.28,172.16,29.84785226]
[1748210606468,18.64964886,172.28,172.17,29.70569069]
[1748210606763,29.70569069,172.23,172.17,29.70569069]
[1748210606968,83.06964886,172.28,172.16,29.84785226]
[1748210607183,29.70569069,172.22,172.16,29.70569069]
[1748210607374,29.70569069,172.19,172.15,34.84]
[1748210607571,29.70569069,172.18,172.15,34.84]
[1748210607768,18.64964886,172.24,172.15,34.84]
[1748210607966,29.70569069,172.2,172.15,34.84]
[1748210608175,29.70569069,172.18,172.15,34.84]
[1748210608469,29.70569069,172.16,172.08,6.2686]
[1748210608672,29.70569069,172.13,172.09,34.84]
[1748210608882,29.70569069,172.12,172.09,34.84]
[1748210609175,29.70569069,172.13,172.09,34.84]
[1748210609392,29.70569069,172.11,172.07,38.42]
[1748210609595,29.70569069,172.09,172.07,38.42]
[1748210609786,29.70569069,172.09,172.04,144.46]
[1748210609978,29.70569069,172.09,172.04,60.84]
[1748210610296,18.64964886,172.15,172.04,60.84]
[1748210610297,29.70569069,172.08,172.04,60.84]
[1748210610483,18.64964886,172.15,172.04,60.84]
[1748210610678,29.70569069,172.1,172.04,90.54569069]
[1748210611287,29.70569069,172.08,172.04,60.84]
[1748210611497,29.70569069,172.07,172.02,73.24]
[1748210611674,18.79181043,172.15,172.04,29.70569069]
[1748210611675,0.14216157,172.14,172.04,29.70569069]
[1748210611881,29.70569069,172.07,172.02,99.24]
[1748210612180,29.70569069,172.04,172.02,34.84]
[1748210612394,29.70569069,172.03,171.97,73.24]
[1748210612580,29.70569069,171.99,171.94,6.4534]
[1748210612891,18.64964886,172.06,171.89,5.81760872]
[1748210612892,38.4,172.03,171.89,6.1138]
[1748210613095,29.70569069,171.96,171.9,29.70569069]
[1748210613300,29.70569069,171.95,171.9,29.70569069]
[1748210613481,29.70569069,171.97,171.91,55.70569069]
[1748210613680,38.4,172.03,171.89,41.09596157]
[1748210613681,38.4,172.03,171.94,29.70569069]
[1748210613874,38.4,172.03,171.95,29.70569069]
[1748210614470,29.70569069,172.01,171.95,29.70569069]
[1748210614688,38.4,172.03,171.95,29.70569069]
[1748210614886,29.70569069,172.01,171.95,29.70569069]
[1748210615799,29.70569069,172.01,171.96,29.70569069]
[1748210615997,29.70569069,172.02,171.96,29.70569069]
[1748210616189,29.70569069,172.02,171.95,26.0]
[1748210616382,29.70569069,172.02,171.96,29.70569069]
[1748210616989,29.70569069,172.02,171.95,26.0]
[1748210617591,29.70569069,172.01,171.95,55.70569069]
[1748210617790,29.70569069,172.01,171.95,29.70569069]
[1748210617999,38.4,172.03,171.95,29.70569069]
[1748210618200,29.70569069,172.03,171.97,29.70569069]
[1748210618585,6.1975,172.1,172.0,29.70569069]
[1748210618786,38.7,172.13,172.03,29.70569069]
[1748210619006,29.70569069,172.1,172.05,29.70569069]
[1748210619183,29.70569069,172.11,172.06,29.70569069]
[1748210619388,29.70569069,172.13,172.07,29.70569069]
[1748210620083,33.83035055,172.12,172.06,29.70569069]
[1748210620287,29.70569069,172.11,172.06,29.70569069]
[1748210620886,29.70569069,172.11,172.04,60.84]
[1748210621090,29.70569069,172.11,172.05,29.70569069]
[1748210621807,6.518,172.15,172.05,29.70569069]
[1748210622010,9.77738878,172.15,172.06,29.70569069]
[1748210622194,29.70569069,172.13,172.04,60.98216157]
[1748210622394,29.70569069,172.12,172.06,29.70569069]
[1748210622591,9.77738878,172.15,172.05,0.14216157]
[1748210622799,29.70569069,172.12,172.06,29.70569069]
[1748210623814,29.70569069,172.13,172.07,29.70569069]
[1748210624181,3.25938878,172.15,172.07,29.70569069]
[1748210624386,3.25938878,172.15,172.05,0.14216157]
[1748210624387,29.70569069,172.12,172.06,29.70569069]
[1748210624798,29.70569069,172.12,172.04,60.84]
[1748210625000,29.70569069,172.12,172.06,29.70569069]
[1748210625611,3.25938878,172.15,172.04,60.84]
[1748210625612,29.70569069,172.11,172.05,29.70569069]
[1748210625811,29.70569069,172.13,172.07,29.70569069]
[1748210626712,29.70569069,172.13,172.04,60.84]
[1748210626928,29.70569069,172.13,172.06,29.70569069]
[1748210627101,18.64964886,172.15,172.07,29.70569069]
[1748210627301,29.70569069,172.14,172.08,29.70569069]
[1748210627604,4.03775216,172.14,172.13,29.70569069]
[1748210628133,4.03775216,172.18,172.12,29.70569069]
[1748210628614,29.70569069,172.14,172.07,29.70569069]
[1748210628987,29.70569069,172.15,172.08,29.70569069]
[1748210629183,33.74344285,172.14,172.06,34.84]
[1748210629401,33.74344285,172.14,172.07,29.70569069]
[1748210629627,29.70569069,172.11,172.05,29.70569069]
[1748210629986,4.03775216,172.1,172.05,29.70569069]
[1748210630709,4.03775216,172.1,172.04,26.0]
[1748210630888,4.03775216,172.09,172.05,29.70569069]
[1748210631815,4.03775216,172.1,172.06,29.70569069]
[1748210633330,32.98620918,172.12,172.06,29.70569069]
[1748210633617,3.28051849,172.12,172.06,29.70569069]
[1748210633794,3.28051849,172.12,172.07,29.70569069]
[1748210633995,4.05713562,172.11,172.07,29.70569069]
[1748210635019,4.05713562,172.1,172.07,29.70569069]
[1748210635923,4.05713562,172.1,172.07,18.55117107]
[1748210636102,4.05713562,172.1,172.05,0.14216157]
[1748210636296,3.28051849,172.12,172.07,18.55117107]
[1748210636495,3.28051849,172.12,172.04,26.14216157]
[1748210636496,21.83168956,172.12,172.06,18.55117107]
[1748210637104,4.06649258,172.11,172.06,18.55117107]
[1748210637511,4.06649258,172.11,172.07,18.55117107]
[1748210637711,4.06649258,172.1,172.07,18.55117107]
[1748210638124,4.06649258,172.1,172.08,18.55117107]
[1748210638296,4.06649258,172.1,172.07,18.55117107]
[1748210638816,4.06649258,172.1,172.06,18.55117107]
[1748210639208,21.83168956,172.12,172.06,18.55117107]
[1748210639406,21.83168956,172.12,172.04,26.0]
[1748210639613,21.83168956,172.12,172.05,53.39117107]
[1748210639831,18.55117107,172.1,172.05,34.84]
[1748210640016,18.55117107,172.09,172.05,34.84]
[1748210640212,4.07025814,172.09,172.05,53.39117107]
[1748210640511,4.07025814,172.09,172.05,18.55117107]
[1748210640713,4.07025814,172.09,172.06,18.55117107]
[1748210640915,4.07025814,172.09,172.05,18.55117107]
[1748210641127,4.07025814,172.08,172.04,53.39117107]
[1748210641708,4.07025814,172.08,172.05,18.55117107]
[1748210642322,18.55117107,172.11,172.05,18.55117107]
[1748210642521,18.55117107,172.1,172.04,53.39117107]
[1748210642913,18.55117107,172.09,172.01,6.0603]
[1748210643232,29.28051849,172.12,172.01,6.0603]
[1748210643233,30.86791849,172.12,172.06,18.55117107]
[1748210643422,30.86791849,172.12,172.02,0.14216157]
[1748210643423,3.28051849,172.12,172.08,18.55117107]
[1748210643728,4.07065296,172.11,172.05,60.98216157]
[1748210643927,4.07065296,172.11,172.1,18.55117107]
[1748210644727,4.12465986,172.14,172.1,18.55117107]
[1748210645419,4.12465986,172.14,172.12,18.55117107]
[1748210645830,4.12465986,172.14,172.11,18.55117107]
[1748210646029,4.07065296,172.16,172.11,18.55117107]
[1748210646629,4.07065296,172.16,172.06,6.4989]
[1748210646630,18.55117107,172.15,172.06,6.4989]
[1748210646827,18.55117107,172.14,172.08,18.55117107]
[1748210647010,22.62182403,172.14,172.09,18.55117107]
[1748210647328,4.07065296,172.14,172.09,18.55117107]
[1748210648032,18.55117107,172.12,172.06,18.55117107]
[1748210648210,18.55117107,172.12,172.05,34.82]
[1748210648407,18.55117107,172.1,172.05,34.82]
[1748210648812,18.55117107,172.11,172.05,53.37117107]
[1748210649110,137.9,172.12,172.07,18.55117107]
[1748210649311,137.9,172.12,172.09,18.55117107]
[1748210649513,156.45117107,172.15,172.09,18.55117107]
[1748210650024,156.45117107,172.15,172.09,29.67864221]
[1748210650025,29.67864221,172.14,172.09,29.67864221]
[1748210650840,29.67864221,172.14,172.08,29.67864221]
[1748210651045,29.67864221,172.14,172.03,38.68]
[1748210651046,18.64964886,172.14,172.03,38.68]
[1748210651336,29.67864221,172.12,172.06,29.67864221]
[1748210651538,29.67864221,172.12,172.07,29.67864221]
[1748210651914,29.67864221,172.12,172.04,0.14216157]
[1748210652114,29.67864221,172.12,172.07,29.67864221]
[1748210652329,141.97316411,172.13,172.08,29.67864221]
[1748210652523,4.07316411,172.11,172.09,29.67864221]
[1748210653250,4.07316411,172.12,172.08,29.67864221]
[1748210653453,4.07316411,172.12,172.07,29.67864221]
[1748210653935,4.07316411,172.12,172.09,29.67864221]
[1748210654527,4.07316411,172.12,172.07,29.67864221]
[1748210656241,4.07316411,172.12,172.06,29.67864221]
[1748210656242,4.07316411,172.11,172.06,29.67864221]
[1748210656830,33.75180632,172.11,172.05,29.67864221]
[1748210657343,29.67864221,172.11,172.04,0.14216157]
[1748210657644,29.67864221,172.11,172.05,29.67864221]
[1748210657943,29.67864221,172.1,172.04,29.67864221]
[1748210658719,29.67864221,172.07,172.03,38.68]
[1748210659255,29.67864221,172.08,172.03,29.67864221]
[1748210659429,4.07697481,172.07,172.03,29.67864221]
[1748210660553,29.67864221,172.09,172.03,29.67864221]
[1748210660756,33.99448349,172.08,172.03,29.67864221]
[1748210661063,4.31584128,172.08,172.03,29.67864221]
[1748210661228,33.99448349,172.08,172.03,29.67864221]
[1748210661759,29.67864221,172.08,172.03,29.67864221]
[1748210662245,29.67864221,172.08,172.01,26.0]
[1748210662450,29.67864221,172.08,172.02,29.67864221]
[1748210662632,6.48045509,172.07,172.02,29.67864221]
[1748210662834,10.56676662,172.07,172.02,29.67864221]
[1748210663135,8.40661549,172.07,172.02,29.67864221]
[1748210663344,4.32030396,172.06,172.02,29.67864221]
[1748210663540,4.32030396,172.06,171.98,38.42]
[1748210663541,29.67864221,172.03,171.98,38.42]
[1748210663749,29.67864221,172.0,171.94,29.67864221]
[1748210664051,29.67864221,171.98,171.93,38.44]
[1748210664430,29.67864221,172.0,171.94,29.67864221]
[1748210665057,8.38516804,171.99,171.94,29.67864221]
[1748210665555,11.70060129,171.99,171.94,29.67864221]
[1748210665869,11.70060129,171.99,171.93,38.44]
[1748210665870,29.67864221,171.98,171.92,34.84]
[1748210666027,29.67864221,171.97,171.92,34.84]
[1748210666530,29.67864221,171.98,171.92,34.84]
[1748210666744,29.67864221,171.97,171.92,34.84]
[1748210667059,29.67864221,171.97,171.92,64.51864221]
[1748210667264,29.67864221,171.97,171.92,34.84]
[1748210667465,29.67864221,171.97,171.92,64.51864221]
[1748210668060,29.67864221,171.98,171.93,29.67864221]
[1748210668260,29.67864221,172.0,171.95,29.67864221]
[1748210668758,3.31543325,172.01,171.98,29.67864221]
[1748210668965,4.12465986,172.03,171.99,29.67864221]
[1748210670249,29.67864221,172.04,171.99,29.67864221]
[1748210670439,32.99407546,172.05,171.99,29.67864221]
[1748210671050,29.67864221,172.04,171.97,34.84]
[1748210671233,29.67864221,172.03,171.97,34.84]
[1748210671434,29.67864221,172.03,171.97,64.51864221]
[1748210671840,29.67864221,172.03,171.98,29.67864221]
[1748210672851,29.67864221,172.03,171.97,64.51864221]
[1748210673849,29.67864221,172.03,171.97,34.84]
[1748210674058,29.67864221,172.03,171.97,64.51864221]
[1748210674459,18.64964886,172.05,171.97,34.84]
[1748210674644,18.64964886,172.05,171.93,64.44]
[1748210674645,29.67864221,171.98,171.93,64.44]
[1748210674846,29.67864221,171.98,171.93,94.11864221]
[1748210675040,29.67864221,172.0,171.95,29.67864221]
[1748210675245,29.67864221,172.01,171.96,29.67864221]
[1748210676355,29.67864221,172.01,171.95,29.67864221]
[1748210676558,29.67864221,172.0,171.95,29.67864221]
[1748210678558,29.67864221,172.01,171.96,29.67864221]
[1748210678758,3.31543325,172.04,171.94,0.14216157]
[1748210678759,3.31543325,172.04,171.97,29.67864221]
[1748210679064,32.99407546,172.04,171.99,29.67864221]
[1748210679357,3.31543325,172.04,171.99,29.67864221]
[1748210679752,32.99407546,172.05,171.99,29.67864221]
[1748210680062,33.72607865,172.04,171.99,29.67864221]
[1748210681060,4.04743644,172.04,171.99,29.67864221]
[1748210681248,29.67864221,172.05,171.99,29.67864221]
[1748210682062,29.67864221,172.05,172.0,29.67864221]
[1748210682355,29.67864221,172.06,172.0,29.67864221]
[1748210682762,29.67864221,172.07,172.01,29.67864221]
[1748210682959,38.44,172.08,172.03,29.67864221]
[1748210683137,4.12465986,172.1,172.04,29.67864221]
[1748210683138,29.67864221,172.09,172.04,29.67864221]
[1748210683657,4.04993601,172.08,172.04,29.67864221]
[1748210683964,4.04993601,172.08,172.03,29.67864221]
[1748210684464,4.04993601,172.08,172.04,26.14216157]
[1748210684668,4.04993601,172.08,172.07,29.67864221]
[1748210684862,4.12465986,172.1,172.07,29.67864221]
[1748210685253,4.12465986,172.1,172.08,29.67864221]
[1748210685443,29.67864221,172.13,172.08,29.67864221]
[1748210685765,29.67864221,172.1,172.06,34.84]
[1748210685947,29.67864221,172.08,172.05,38.28]
[1748210686149,29.67864221,172.09,172.05,38.28]
[1748210687849,3.29981305,172.12,172.05,38.28]
[1748210688174,29.67864221,172.11,172.05,67.95864221]
[1748210688544,3.29981305,172.12,172.05,67.95864221]
[1748210688545,29.67864221,172.1,172.05,67.95864221]
[1748210688968,29.67864221,172.11,172.05,67.95864221]
[1748210689366,3.29981305,172.12,172.05,67.95864221]
[1748210689555,29.67864221,172.11,172.05,67.95864221]